fUST/lending_fUST_20250614
["ID","MTS","AMOUNT","RATE_DAILY","PERIOD"]
[365730469,1749855046124,-1000.0,0.00022834,2]
[365730470,1749855046134,-1000.0,0.00022834,2]
[365730471,1749855046143,-1000.0,0.00022834,2]
[365730472,1749855046152,-1000.0,0.00022834,2]
[365730473,1749855046161,-1000.0,0.00022834,2]
[365730474,1749855046170,-1000.0,0.00022834,2]
[365730475,1749855046179,-1000.0,0.00022834,2]
[365730476,1749855046188,-1000.0,0.00022834,2]
[365730477,1749855046197,-1000.0,0.00022834,2]
[365730478,1749855046206,-2408.23524761,0.00022834,2]
[365730479,1749855046216,-1000.0,0.00022834,2]
[365730480,1749855046225,-1000.0,0.00022834,2]
[365730481,1749855046234,-1000.0,0.00022834,2]
[365730482,1749855046243,-1000.0,0.00022834,2]
[365730483,1749855046253,-1035.97644517,0.00022834,2]
[365730484,1749855046262,-151.0,0.00022834,2]
[365730486,1749855046272,-151.0,0.00022834,2]
[365730488,1749855046281,-391.3,0.0002288,10]
[365730489,1749855046290,-390.58035158,0.00022888,2]
[365730490,1749855046302,-460.0,0.0002289,4]
[365730491,1749855046311,-2258.6,0.0002289,4]
[365730492,1749855046321,-460.0,0.0002289,4]
[365730493,1749855046331,-460.0,0.0002289,4]
[365730494,1749855046340,-460.0,0.0002289,4]
[365730495,1749855046349,-525.19,0.00022891,4]
[365730496,1749855046358,-706.23,0.00022891,4]
[365730497,1749855046367,-460.0,0.00022891,4]
[365730498,1749855046376,-460.0,0.00022891,4]
[365730499,1749855046386,-460.0,0.00022891,4]
[365730500,1749855046395,-460.0,0.00022891,4]
[365730501,1749855046404,-734.41,0.00022891,4]
[365730502,1749855046414,-460.0,0.00022902,4]
[365730503,1749855046424,-2734.06158663,0.00022934,8]
[365730504,1749855046433,-282.0,0.00022947,2]
[365730505,1749855046443,-153.0,0.00022986,2]
[365730506,1749855046452,-160.0,0.00023,3]
[365730507,1749855046461,-151.0,0.00023,7]
[365730508,1749855046470,-151.0,0.00023,7]
[365730509,1749855046479,-151.0,0.00023,7]
[365730510,1749855046488,-151.0,0.00023,7]
[365730511,1749855046498,-240.451578,0.00023,7]
[365730512,1749855046507,-240.451578,0.00023,7]
[365730513,1749855046516,-729.7030954,0.00023014,2]
[365730514,1749855046526,-184.15,0.00023028,3]
[365730515,1749855046535,-552.46,0.00023028,3]
[365730516,1749855046544,-2734.06158663,0.00023038,8]
[365730517,1749855046553,-368.3,0.00023086,3]
[365730518,1749855046562,-1473.19,0.00023096,3]
[365730519,1749855046571,-736.6,0.00023096,3]
[365730520,1749855046581,-420.0,0.00023104,2]
[365730521,1749855046590,-420.0,0.00023105,2]
[365730522,1749855046599,-460.0,0.00023106,4]
[365730523,1749855046609,-2734.06158663,0.00023141,8]
[365730524,1749855046623,-460.0,0.00023164,4]
[365730525,1749855046632,-2258.6,0.00023164,4]
[365730526,1749855046641,-460.0,0.00023164,4]
[365730527,1749855046651,-460.0,0.00023164,4]
[365730528,1749855046660,-460.0,0.00023164,4]
[365730529,1749855046670,-525.19,0.00023165,4]
[365730530,1749855046679,-706.23,0.00023165,4]
[365730531,1749855046688,-460.0,0.00023165,4]
[365730532,1749855046699,-460.0,0.00023165,4]
[365730533,1749855046709,-460.0,0.00023165,4]
[365730534,1749855046718,-460.0,0.00023165,4]
[365730535,1749855046727,-734.41,0.00023165,4]
[365730536,1749855046736,-460.0,0.00023176,4]
[365730537,1749855046746,-151.0,0.000232,7]
[365730538,1749855046755,-151.0,0.000232,7]
[365730539,1749855046764,-151.0,0.000232,7]
[365730540,1749855046773,-151.0,0.000232,7]
[365730541,1749855046783,-273.047409,0.000232,7]
[365730542,1749855046792,-273.047409,0.000232,7]
[365730543,1749855046801,-151.0,0.000232,7]
[365730544,1749855046811,-1150.672385,0.000232,7]
[365730545,1749855046820,-1150.672385,0.000232,7]
[365730546,1749855046829,-151.0,0.000232,7]
[365730547,1749855046838,-240.451578,0.000232,7]
[365730548,1749855046848,-240.451578,0.000232,7]
[365730549,1749855046857,-2734.06158663,0.00023245,8]
[365730550,1749855046866,-201.0,0.00023245,2]
[365730551,1749855046875,-158.8399287,0.00023288,2]
[365730552,1749855046884,-176.9539549,0.00023288,2]
[365730553,1749855046893,-151.0,0.00023288,4]
[365730554,1749855046902,-215.84594675,0.00023315,4]
[365730555,1749855046912,-2734.06158663,0.00023348,9]
[365730556,1749855046921,-273.42306137,0.00023351,2]
[365730557,1749855046930,-390.58035158,0.00023377,2]
[365730558,1749855046939,-460.0,0.0002338,4]
[365730559,1749855046948,-5000.0,0.00023382,2]
[365730560,1749855046957,-1206.42,0.000234,7]
[365730561,1749855046967,-271.73,0.00023429,10]
[365730562,1749855046976,-273.42306133,0.00023433,2]
[365730563,1749855046985,-460.0,0.00023438,4]
[365730564,1749855046993,-2258.6,0.00023438,4]
[365730565,1749855047003,-460.0,0.00023438,4]
[365730566,1749855047012,-460.0,0.00023438,4]
[365730567,1749855047021,-460.0,0.00023438,4]
[365730568,1749855047031,-525.19,0.00023439,4]
[365730569,1749855047040,-706.23,0.00023439,4]
[365730570,1749855047048,-460.0,0.00023439,4]
[365730571,1749855047057,-556.43,0.00023439,4]
[365730572,1749855047066,-348.26,0.00023439,4]
[365730573,1749855047074,-460.0,0.00023439,4]
[365730574,1749855047085,-734.41,0.00023439,4]
[365730575,1749855047094,-282.0,0.00023446,2]
[365730576,1749855047103,-460.0,0.0002345,4]
[365730577,1749855047112,-500.0,0.0002345,2]
[365730578,1749855047121,-500.0,0.0002345,2]
[365730579,1749855047132,-500.0,0.0002345,2]
[365730580,1749855047141,-469.86572695,0.0002345,2]
[365730581,1749855047150,-500.0,0.0002345,2]
[365730582,1749855047159,-500.0,0.0002345,2]
[365730583,1749855047168,-500.0,0.0002345,2]
[365730584,1749855047177,-500.0,0.0002345,2]
[365730585,1749855047186,-500.0,0.0002345,2]
[365730586,1749855047195,-500.0,0.0002345,2]
[365730587,1749855047204,-151.0,0.00023451,7]
[365730588,1749855047213,-151.0,0.00023451,7]
[365730589,1749855047222,-151.0,0.00023451,7]
[365730590,1749855047232,-2734.06158663,0.00023452,9]
[365730591,1749855047241,-151.0,0.00023454,7]
[365730592,1749855047250,-151.0,0.00023454,7]
[365730593,1749855047261,-273.047409,0.00023454,7]
[365730594,1749855047270,-273.047409,0.00023454,7]
[365730595,1749855047279,-151.0,0.00023454,7]
[365730596,1749855047288,-240.451578,0.00023454,7]
[365730597,1749855047297,-240.451578,0.00023454,7]
[365730598,1749855047306,-201.0,0.00023457,2]
[365730599,1749855047315,-1150.672385,0.0002347,7]
[365730600,1749855047324,-1150.672385,0.0002347,7]
[365730601,1749855047336,-11314.49,0.000235,3]
[365730602,1749855047345,-4856.49,0.000235,7]
[365730603,1749855047354,-844.94977992,0.000235,3]
[365730604,1749855047363,-229.78555783,0.000235,3]
[365730605,1749855047372,-424.32678023,0.000235,3]
[365730606,1749855047381,-160.0,0.000235,3]
[365730607,1749855047390,-160.0,0.000235,3]
[365730608,1749855047399,-7804.55807244,0.000235,2]
[365730609,1749855047409,-160.0,0.000235,3]
[365730610,1749855047419,-835.28007164,0.000235,3]
[365730611,1749855047428,-273.42306133,0.00023516,2]
[365730612,1749855047438,-2093.760783,0.0002352,3]
[365730613,1749855047447,-2734.06158663,0.00023555,9]
[365730614,1749855047456,-200.0,0.00023561,4]
[365730615,1749855047466,-200.0,0.00023561,4]
[365730616,1749855047475,-200.0,0.00023561,4]
[365730617,1749855047484,-200.0,0.00023561,4]
[365730618,1749855047493,-200.0,0.00023561,4]
[365730619,1749855047503,-200.0,0.00023561,4]
[365730620,1749855047624,-200.0,0.00023561,4]
[365730621,1749855047634,-200.0,0.00023561,4]
[365730622,1749855047643,-503.2118004,0.00023573,2]
[365730623,1749855047653,-273.42306133,0.00023598,2]
[365730624,1749855047663,-12091.404348,0.000236,2]
[365730625,1749855047672,-105737.41,0.000236,7]
[365730626,1749855047681,-151.0,0.000236,7]
[365730627,1749855047692,-151.0,0.00023613,7]
[365730628,1749855047702,-151.0,0.00023613,7]
[365730629,1749855047711,-151.000003,0.00023613,7]
[365730630,1749855047720,-240.451578,0.00023613,7]
[365730631,1749855047729,-240.451578,0.00023613,7]
[365730632,1749855047738,-460.0,0.00023654,4]
[365730633,1749855047747,-2734.06158663,0.00023659,9]
[365730634,1749855047756,-2169.43799559,0.0002368,2]
[365730635,1749855047765,-273.42306133,0.0002368,2]
[365730636,1749855047775,-166.73694563,0.0002368,2]
[365730637,1749855047784,-173.9379647,0.0002368,4]
[365730638,1749855047793,-173.9379647,0.0002368,4]
[365730639,1749855047802,-173.9379647,0.0002368,4]
[365730640,1749855047811,-173.93,0.0002368,4]
[365730641,1749855047821,-162.34210038,0.0002368,4]
[365730642,1749855047831,-162.34210038,0.0002368,4]
[365730643,1749855047840,-162.34210038,0.0002368,4]
[365730644,1749855047849,-162.34210038,0.0002368,4]
[365730645,1749855047858,-162.34210038,0.0002368,4]
[365730646,1749855047867,-162.34210038,0.0002368,4]
[365730647,1749855047876,-162.34210038,0.0002368,4]
[365730648,1749855047885,-162.34210038,0.0002368,4]
[365730649,1749855047895,-162.34210038,0.0002368,4]
[365730650,1749855047904,-3000.0,0.0002369,2]
[365730651,1749855047913,-273.047409,0.0002369,7]
[365730652,1749855047922,-273.047409,0.0002369,7]
[365730653,1749855047931,-3000.0,0.000237,2]
[365730654,1749855047941,-43757.3213423,0.000237,7]
[365730655,1749855047950,-151.0,0.000237,7]
[365730656,1749855047959,-151.0,0.000237,7]
[365730657,1749855047968,-151.0,0.000237,7]
[365730658,1749855047978,-151.0,0.000237,5]
[365730659,1749855047987,-1487.83769631,0.000237,2]
[365730660,1749855047996,-162.34,0.000237,4]
[365730661,1749855048006,-1285.0,0.00023708,2]
[365730662,1749855048014,-3000.0,0.0002371,2]
[365730663,1749855048024,-151.882375,0.0002371,7]
[365730664,1749855048033,-151.0,0.0002371,7]
[365730665,1749855048042,-460.0,0.00023712,4]
[365730666,1749855048051,-2258.6,0.00023712,4]
[365730667,1749855048060,-460.0,0.00023712,4]
[365730668,1749855048070,-460.0,0.00023712,4]
[365730669,1749855048079,-706.23,0.00023713,4]
[365730670,1749855048088,-525.19,0.00023713,4]
[365730671,1749855048098,-597.76398746,0.00023713,4]
[365730672,1749855048107,-460.0,0.00023713,4]
[365730673,1749855048116,-734.41,0.00023713,4]
[365730674,1749855048126,-160.727909,0.00023714,7]
[365730675,1749855048135,-160.727909,0.00023714,7]
[365730676,1749855048144,-1150.672385,0.00023714,7]
[365730677,1749855048153,-1150.672385,0.00023714,7]
[365730678,1749855048163,-3000.0,0.0002372,2]
[365730679,1749855048172,-170.075529,0.00023724,7]
[365730680,1749855048181,-170.075529,0.00023724,7]
[365730681,1749855048191,-151.0,0.00023724,7]
[365730682,1749855048200,-460.0,0.00023724,4]
[365730683,1749855048209,-151.0,0.00023726,7]
[365730684,1749855048218,-151.0,0.00023726,7]
[365730685,1749855048227,-151.0,0.00023726,7]
[365730686,1749855048236,-3000.0,0.0002373,2]
[365730687,1749855048245,-22327.64685644,0.00023738,2]
[365730688,1749855048254,-151.0,0.00023738,7]
[365730689,1749855048263,-240.451578,0.00023738,7]
[365730690,1749855048274,-240.451578,0.00023738,7]
[365730691,1749855048283,-151.0,0.00023738,7]
[365730692,1749855048292,-151.0,0.00023738,7]
[365730693,1749855048301,-4166.00833,0.0002374,2]
[365730694,1749855048310,-151.384546,0.0002374,7]
[365730695,1749855048320,-289.627637,0.0002374,7]
[365730696,1749855048330,-289.627637,0.0002374,7]
[365730697,1749855048340,-151.0,0.0002374,7]
[365730698,1749855048349,-151.0,0.0002374,7]
[365730699,1749855048359,-2734.06158663,0.00023762,9]
[365730700,1749855048368,-500.0,0.00023773,2]
[365730701,1749855048377,-500.0,0.00023773,2]
[365730702,1749855048386,-500.0,0.00023773,2]
[365730703,1749855048395,-500.0,0.00023773,2]
[365730704,1749855048403,-310.26841365,0.00023773,2]
[365730705,1749855048413,-304.63792749,0.00023773,2]
[365730706,1749855048422,-227.42880251,0.00023773,2]
[365730707,1749855048431,-500.0,0.00023773,2]
[365730708,1749855048440,-500.0,0.00023773,2]
[365730709,1749855048450,-503.00566977,0.00023773,2]
[365730710,1749855048459,-500.0,0.00023773,2]
[365730711,1749855048468,-500.0,0.00023773,2]
[365730712,1749855048477,-500.0,0.00023773,2]
[365730713,1749855048486,-503.48503408,0.00023773,2]
[365730714,1749855048495,-500.0,0.00023773,2]
[365730715,1749855048504,-505.84635583,0.00023773,2]
[365730716,1749855048514,-500.91748917,0.00023773,2]
[365730717,1749855048523,-501.03912607,0.00023773,2]
[365730718,1749855048532,-500.0,0.00023773,2]
[365730719,1749855048542,-500.0,0.00023773,2]
[365730720,1749855048551,-500.0,0.00023773,2]
[365730721,1749855048560,-500.0,0.00023773,2]
[365730722,1749855048569,-500.0,0.00023773,2]
[365730723,1749855048578,-503.41766689,0.00023773,2]
[365730724,1749855048588,-500.0,0.00023773,2]
[365730725,1749855048597,-500.0,0.00023773,2]
[365730726,1749855048607,-500.0,0.00023773,2]
[365730727,1749855048621,-500.0,0.00023773,2]
[365730728,1749855048630,-500.0,0.00023773,2]
[365730729,1749855048639,-500.0,0.00023773,2]
[365730730,1749855048648,-220.41741011,0.00023773,2]
[365730731,1749855048658,-503.33767011,0.00023773,2]
[365730732,1749855048668,-500.0,0.00023773,2]
[365730733,1749855048677,-500.0,0.00023773,2]
[365730734,1749855048686,-600.0,0.00023773,2]
[365730735,1749855048696,-500.0,0.00023773,2]
[365730736,1749855048706,-500.0,0.00023773,2]
[365730737,1749855048715,-240.58970932,0.00023773,2]
[365730738,1749855048725,-500.0,0.00023773,2]
[365730739,1749855048734,-151.0,0.00023773,7]
[365730740,1749855048743,-151.0,0.00023773,7]
[365730741,1749855048752,-151.0,0.00023773,7]
[365730742,1749855048761,-151.0,0.00023773,7]
[365730743,1749855048771,-151.0,0.00023773,7]
[365730744,1749855048781,-21271.7717459,0.0002378,2]
[365730745,1749855048790,-7214.69682399,0.0002378,2]
[365730746,1749855048800,-1510.35740732,0.0002378,2]
[365730747,1749855048810,-289786.42296001,0.0002378,5]
[365730748,1749855481165,2995.0,0.00024939,60]
[365730750,1749855543258,158.944583,0.00013699,2]
[365730752,1749855645379,2000.0,0.00020263,120]
[365730755,1749855830456,500.0,0.00024939,120]
[365730756,1749855841478,500.0,0.00024939,120]
[365730759,1749855853069,500.0,0.00024939,120]
[365730760,1749855861850,500.0,0.00024939,120]
[365730766,1749855900319,500.0,0.00024939,120]
[365730767,1749855906980,500.0,0.00024939,120]
[365730768,1749855915210,580.0,0.00024939,120]
[365730770,1749855921676,500.0,0.00024939,120]
[365730771,1749855924609,1386.86329369,0.0002,2]
[365730773,1749855945262,182.477,0.00024658,120]
[365730777,1749855969457,500.0,0.00024939,120]
[365730778,1749855974266,200.0,0.00024939,60]
[365730779,1749855975880,500.0,0.00024939,120]
[365730780,1749856006490,200.0,0.00024658,120]
[365730781,1749856011783,460.0,0.00024939,120]
[365730782,1749856028207,-458.5213604,0.00020714,2]
[365730783,1749856028228,-577.26193923,0.00020986,2]
[365730784,1749856028251,-300.0,0.00021245,2]
[365730785,1749856028277,-460.0,0.00021246,4]
[365730786,1749856028301,-460.0,0.00021246,4]
[365730787,1749856028325,-21.53402505,0.00021246,4]
[365730788,1749856030124,-438.46597495,0.00021246,4]
[365730789,1749856030148,-440.0,0.00021257,4]
[365730790,1749856030170,-460.0,0.00021257,2]
[365730791,1749856030192,-255.0,0.0002131,2]
[365730792,1749856030212,-255.0,0.00021315,2]
[365730793,1749856030232,-255.0,0.0002132,2]
[365730794,1749856030253,-255.0,0.00021325,2]
[365730795,1749856030273,-326.94452487,0.0002133,2]
[365730796,1749856030295,-300.0,0.00021518,2]
[365730797,1749856030318,-460.0,0.00021519,4]
[365730798,1749856030339,-440.0,0.00021519,4]
[365730799,1749856030361,-440.0,0.00021519,4]
[365730800,1749856030384,-460.0,0.00021519,4]
[365730801,1749856030407,-460.0,0.0002152,4]
[365730802,1749856030431,-459.41449293,0.0002152,4]
[365730803,1749856034091,-0.58550707,0.0002152,4]
[365730804,1749856034116,-460.0,0.00021529,4]
[365730805,1749856034145,-1453.92,0.00021529,4]
[365730806,1749856034173,-534.80132407,0.00021529,4]
[365730807,1749856034200,-460.0,0.00021529,4]
[365730808,1749856034222,-245.54174136,0.00021529,4]
[365730809,1749856034244,-440.0,0.00021529,4]
[365730810,1749856034267,-460.0,0.00021529,4]
[365730811,1749856034292,-460.0,0.00021529,4]
[365730812,1749856034316,-474.20973629,0.00021529,4]
[365730814,1749856145118,-3233.02987021,0.00020263,2]
[365730853,1749856232294,-79.42187359,0.00020263,2]
[365730855,1749856232304,-275.99274282,0.00020786,2]
[365730857,1749856232317,-236.51830361,0.00021314,2]
[365730859,1749856232327,-6872.62653895,0.00021429,2]
[365730861,1749856232337,-300.0,0.00021528,2]
[365730863,1749856232346,-3.86026371,0.00021529,4]
[365730865,1749856232355,-460.0,0.00021529,4]
[365730867,1749856232366,-440.0,0.00021529,4]
[365730881,1749856232489,-440.0,0.00021529,4]
[365730883,1749856232499,-440.0,0.00021529,4]
[365730885,1749856232509,-440.0,0.00021529,4]
[365730887,1749856232518,-460.0,0.00021529,4]
[365730889,1749856232527,-440.0,0.00021529,4]
[365730891,1749856232537,-460.0,0.00021529,4]
[365730893,1749856232546,-460.0,0.00021529,4]
[365730895,1749856232555,-440.0,0.0002153,4]
[365730897,1749856232565,-520.43362242,0.0002153,4]
[365730899,1749856232574,-420.0,0.0002153,4]
[365730901,1749856232584,-460.0,0.0002153,4]
[365730903,1749856232593,-460.0,0.0002153,4]
[365730905,1749856232603,-586.16,0.00021531,2]
[365730907,1749856232612,-494.51,0.00021531,4]
[365730909,1749856232623,-460.0,0.00021531,4]
[365730911,1749856232633,-460.0,0.00021531,4]
[365730913,1749856232642,-460.0,0.00021679,4]
[365730915,1749856232652,-1393.34,0.00021679,4]
[365730917,1749856232661,-460.0,0.00021679,4]
[365730919,1749856232671,-1588.45,0.00021775,2]
[365730921,1749856232680,-460.0,0.00021794,4]
[365730923,1749856232690,-460.0,0.00021803,4]
[365730925,1749856232699,-460.0,0.00021803,4]
[365730927,1749856232708,-478.07,0.00021803,4]
[365730929,1749856232718,-460.0,0.00021804,4]
[365730931,1749856232728,-460.0,0.00021805,4]
[365730933,1749856232737,-460.0,0.00021805,4]
[365730935,1749856232747,-1096.73110152,0.000219,6]
[365730937,1749856232756,-158.944583,0.00021918,2]
[365730939,1749856232765,-247.292,0.00021918,2]
[365730941,1749856232776,-460.0,0.00021953,4]
[365730943,1749856232784,-1393.34,0.00021953,4]
[365730945,1749856232794,-460.0,0.00021953,4]
[365730947,1749856232803,-1096.73110128,0.00022003,6]
[365730949,1749856232812,-460.0,0.00022068,4]
[365730951,1749856232822,-460.0,0.00022077,4]
[365730953,1749856232838,-460.0,0.00022077,4]
[365730955,1749856232848,-478.07,0.00022077,4]
[365730957,1749856232857,-460.0,0.00022078,4]
[365730959,1749856232867,-460.0,0.00022079,4]
[365730961,1749856232876,-460.0,0.00022079,4]
[365730963,1749856232886,-1096.73110128,0.00022107,6]
[365730964,1749856232895,-158.8399287,0.00022137,2]
[365730965,1749856232906,-176.9539549,0.00022137,2]
[365730966,1749856232915,-176.9539549,0.00022137,2]
[365730967,1749856232925,-158.8399287,0.00022137,2]
[365730968,1749856232934,-573.6747916,0.00022137,2]
[365730969,1749856232944,-1096.73110128,0.0002221,6]
[365730970,1749856232953,-52.7785219,0.00022227,4]
[365730971,1749856232966,-407.2214781,0.00022227,4]
[365730972,1749856232975,-1393.34,0.00022227,4]
[365730973,1749856232985,-460.0,0.00022227,4]
[365730974,1749856232995,-343.31765894,0.00022314,7]
[365730975,1749856233020,-753.41344234,0.00022314,7]
[365730976,1749856233030,-167.3915793,0.00022317,2]
[365730977,1749856233040,-460.0,0.00022342,4]
[365730978,1749856233050,-460.0,0.00022351,4]
[365730979,1749856233061,-460.0,0.00022351,4]
[365730980,1749856233070,-478.07,0.00022351,4]
[365730981,1749856233080,-460.0,0.00022352,4]
[365730982,1749856233090,-460.0,0.00022353,4]
[365730983,1749856233100,-460.0,0.00022353,4]
[365730984,1749856233110,-1096.73110128,0.00022417,7]
[365730985,1749856233122,-496.0308855,0.00022466,2]
[365730986,1749856233131,-153.0,0.00022466,2]
[365730987,1749856233152,-176.9539549,0.00022466,2]
[365730988,1749856233167,-573.6747916,0.00022466,2]
[365730989,1749856233177,-158.8399287,0.00022466,2]
[365730990,1749856233187,-153.0,0.00022466,2]
[365730991,1749856233198,-946.3958207,0.00022466,2]
[365730993,1749856233210,-306.0,0.00022466,2]
[365730994,1749856233221,-573.6747916,0.00022466,2]
[365730996,1749856233231,-573.6747916,0.00022466,2]
[365730998,1749856233241,-153.0,0.00022466,2]
[365731000,1749856233251,-460.0,0.00022501,4]
[365731002,1749856233261,-975.97740856,0.00022501,4]
[365731013,1749856238224,-417.36259144,0.00022501,4]
[365731014,1749856238241,-342.41768189,0.00022501,4]
[365731015,1749856238358,-117.58231811,0.00022501,4]
[365731016,1749856238372,-903.79142079,0.00022521,7]
[365731191,1749856246283,-460.0,0.00021531,4]
[365731192,1749856246295,-460.0,0.00021679,4]
[365731193,1749856246307,-460.0,0.00021805,4]
[365731194,1749856246319,-460.0,0.00021953,4]
[365731195,1749856246332,-460.0,0.00022079,4]
[365731196,1749856246344,-573.6747916,0.00022137,2]
[365731197,1749856246355,-176.9539549,0.00022137,2]
[365731198,1749856246366,-158.8399287,0.00022137,2]
[365731199,1749856246377,-460.0,0.00022227,4]
[365731200,1749856246388,-104.64982404,0.00022353,4]
[365731204,1749856632163,159.397,0.00013699,2]
[365731205,1749856833379,2000.0,0.00021361,120]
[365731206,1749857230096,-447.948,0.00020366,2]
[365731207,1749857231230,-261.22492711,0.00020366,2]
[365731208,1749857231251,-297.06308506,0.00021083,2]
[365731209,1749857239088,-202.93691494,0.00021083,2]
[365731210,1749857239111,-789.1244893,0.00021129,2]
[365731211,1749857239135,-1568.23,0.00021469,2]
[365731212,1749857239157,-2209.3343744,0.0002147,2]
[365731213,1749857239180,-300.0,0.00021529,2]
[365731214,1749857239203,-480.0,0.00021529,2]
[365731215,1749857239226,-300.0,0.00021529,2]
[365731216,1749857239249,-300.0,0.00021529,2]
[365731217,1749857239271,-219.44302782,0.0002153,4]
[365731218,1749857239292,-400.0,0.0002153,4]
[365731219,1749857239313,-460.0,0.0002153,4]
[365731220,1749857239335,-525.76247446,0.0002153,4]
[365731221,1749857239358,-420.0,0.0002153,4]
[365731222,1749857239380,-222.17326078,0.0002153,4]
[365731223,1749857239402,-153.0,0.00021644,2]
[365731224,1749857239424,-317.3886204,0.00021778,2]
[365731225,1749857239446,-176.9539549,0.00021778,2]
[365731226,1749857239467,-153.0,0.00021778,2]
[365731227,1749857239488,-573.6747916,0.00021778,2]
[365731228,1749857239509,-158.8399287,0.00021778,2]
[365731229,1749857239536,-1147.3495832,0.00021778,2]
[365731230,1749857239558,-460.0,0.00021793,4]
[365731231,1749857239579,-161.16018962,0.00021793,4]
[365731232,1749857251076,-268.83981038,0.00021793,4]
[365731233,1749857251098,-460.0,0.00021793,4]
[365731234,1749857251118,-430.0,0.00021793,4]
[365731235,1749857251140,-140.99759417,0.00021793,4]
[365731236,1749857302370,2673.0,0.00024941,60]
[365731237,1749857315944,451.11682652,0.0002,2]
[365731259,1749857432503,-170.874369,0.0002121,2]
[365731261,1749857432513,-165.59564569,0.00021242,2]
[365731263,1749857432522,-1553.21,0.00021412,2]
[365731265,1749857432532,-300.0,0.00021792,2]
[365731268,1749857432541,-460.0,0.00021793,4]
[365731270,1749857432551,-460.0,0.00021793,4]
[365731272,1749857432560,-430.0,0.00021793,4]
[365731274,1749857432569,-430.0,0.00021793,4]
[365731276,1749857432579,-460.0,0.00021793,4]
[365731278,1749857432588,-440.0,0.00021793,4]
[365731280,1749857432598,-220.0,0.00021793,4]
[365731282,1749857432607,-440.0,0.00021793,4]
[365731283,1749857432618,-440.0,0.00021793,4]
[365731285,1749857432627,-460.0,0.00021793,4]
[365731287,1749857432638,-460.0,0.00021793,4]
[365731290,1749857432647,-400.0,0.00021898,4]
[365731292,1749857432656,-400.0,0.00021898,4]
[365731295,1749857432667,-460.0,0.00021898,4]
[365731298,1749857432676,-460.0,0.00021898,4]
[365731300,1749857432686,-1438.3,0.00021898,4]
[365731302,1749857432696,-460.0,0.00021898,4]
[365731304,1749857432705,-460.0,0.00021899,4]
[365731306,1749857432714,-440.0,0.00021899,4]
[365731308,1749857432724,-440.0,0.00021899,4]
[365731310,1749857432733,-460.0,0.00021899,4]
[365731312,1749857432742,-460.0,0.00021899,4]
[365731314,1749857432751,-440.0,0.00021899,4]
[365731316,1749857432761,-460.0,0.00021899,4]
[365731318,1749857432774,-460.0,0.00021899,4]
[365731320,1749857432784,-460.0,0.00021899,4]
[365731322,1749857432793,-460.0,0.00021899,4]
[365731324,1749857432802,-246.77268036,0.00021899,4]
[365731326,1749857432813,-460.0,0.00021899,4]
[365731328,1749857432823,-460.0,0.00021899,4]
[365731330,1749857432832,-460.0,0.00021899,4]
[365731332,1749857432844,-460.0,0.00021899,4]
[365731334,1749857432853,-460.0,0.00021899,4]
[365731336,1749857432864,-460.0,0.00021899,4]
[365731338,1749857432873,-460.0,0.00021899,4]
[365731340,1749857432883,-460.0,0.00021899,4]
[365731342,1749857432891,-274.61376877,0.00021899,4]